fUST/lending_fUST_20240630
["ID","MTS","AMOUNT","RATE_DAILY","PERIOD"]
[330693392,1719712242256,-500.0,0.00016438,2]
[330693393,1719712242266,-500.0,0.00016438,2]
[330693395,1719712242275,-500.0,0.00016438,2]
[330693398,1719712242286,-501.20225164,0.00016438,2]
[330693400,1719712242296,-500.0,0.00016438,2]
[330693401,1719712242305,-500.0,0.00016438,2]
[330693403,1719712242315,-3203.93,0.00016438,2]
[330693405,1719712242324,-502.53388682,0.00016438,2]
[330693407,1719712242334,-500.0,0.00016438,2]
[330693409,1719712242344,-813.01,0.00016438,2]
[330693411,1719712242354,-568.65,0.00016438,2]
[330693413,1719712242363,-9887.02,0.00016438,2]
[330693415,1719712242373,-500.0,0.00016438,2]
[330693417,1719712242384,-500.0,0.00016438,2]
[330693420,1719712242394,-500.0,0.00016438,2]
[330693421,1719712242404,-579.06,0.00016438,2]
[330693423,1719712242414,-600.27,0.00016438,2]
[330693425,1719712242424,-500.0,0.00016438,2]
[330693427,1719712242433,-500.0,0.00016438,2]
[330693429,1719712242442,-584.3,0.00016438,2]
[330693431,1719712242452,-500.0,0.00016438,2]
[330693433,1719712242462,-22697.73,0.00016438,2]
[330693436,1719712242471,-500.0,0.00016438,2]
[330693438,1719712242481,-500.0,0.00016438,2]
[330693439,1719712242490,-504.32857135,0.00016438,2]
[330693441,1719712242499,-11698.07,0.00016438,2]
[330693443,1719712242508,-1004.52,0.00016438,2]
[330693445,1719712242518,-410.26335676,0.00016438,2]
[330693447,1719712242527,-1075.04,0.00016438,2]
[330693449,1719712242536,-500.0,0.00016438,2]
[330693451,1719712242545,-1899.1,0.00016438,2]
[330693453,1719712242554,-500.0,0.00016438,2]
[330693455,1719712242563,-502.32933308,0.00016438,2]
[330693457,1719712242573,-500.0,0.00016438,2]
[330693459,1719712242582,-284.42713309,0.00016438,2]
[330693461,1719712242591,-1254.95,0.00016438,2]
[330693463,1719712242599,-502.75853814,0.00016438,2]
[330693465,1719712242609,-695.52,0.00016438,2]
[330693467,1719712242618,-234.00245064,0.00016438,2]
[330693469,1719712242627,-500.0,0.00016438,2]
[330693471,1719712242637,-500.0,0.00016438,2]
[330693472,1719712242647,-703.9,0.00016438,2]
[330693474,1719712242657,-303.83008966,0.00016438,2]
[330693476,1719712242666,-1051.99,0.00016438,2]
[330693478,1719712242675,-662.69,0.00016438,2]
[330693480,1719712242684,-506.19227959,0.00016438,2]
[330693483,1719712242694,-2086.46,0.00016438,2]
[330693487,1719712242703,-500.0,0.00016438,2]
[330693491,1719712242712,-623.71,0.00016438,2]
[330693496,1719712242722,-500.0,0.00016438,2]
[330693500,1719712242731,-502.68202853,0.00016438,2]
[330693503,1719712242744,-504.30400808,0.00016438,2]
[330693506,1719712242753,-907.11,0.00016438,2]
[330693508,1719712242762,-504.49353657,0.00016438,2]
[330693511,1719712242771,-3646.05,0.00016438,2]
[330693514,1719712242782,-500.0,0.00016438,2]
[330693517,1719712242792,-550.02769491,0.00016438,2]
[330693520,1719712242801,-500.0,0.00016438,2]
[330693523,1719712242810,-500.0,0.00016438,2]
[330693526,1719712242821,-501.5266152,0.00016438,2]
[330693529,1719712242831,-1014.6,0.00016438,2]
[330693532,1719712242841,-500.0,0.00016438,2]
[330693535,1719712242850,-501.48476871,0.00016438,2]
[330693538,1719712242859,-500.0,0.00016438,2]
[330693541,1719712242869,-1371.68,0.00016438,2]
[330693543,1719712242878,-500.0,0.00016438,2]
[330693544,1719712242888,-1261.74,0.00016438,2]
[330693546,1719712242897,-500.0,0.00016438,2]
[330693548,1719712242906,-1352.43,0.00016438,2]
[330693550,1719712242915,-501.7334312,0.00016438,2]
[330693552,1719712242925,-500.0,0.00016438,2]
[330693554,1719712242934,-501.53968215,0.00016438,2]
[330693556,1719712242944,-501.82408422,0.00016438,2]
[330693558,1719712242954,-500.0,0.00016438,2]
[330693559,1719712242963,-503.08253813,0.00016438,2]
[330693560,1719712242972,-500.0,0.00016438,2]
[330693561,1719712242982,-517.27090328,0.00016438,2]
[330693562,1719712242991,-500.0,0.00016438,2]
[330693563,1719712242999,-504.21438087,0.00016438,2]
[330693564,1719712243008,-500.0,0.00016438,2]
[330693565,1719712243017,-500.0,0.00016438,2]
[330693566,1719712243025,-832.52,0.00016438,2]
[330693567,1719712243034,-501.5589156,0.00016438,2]
[330693568,1719712243043,-523.99123815,0.00016438,2]
[330693569,1719712243051,-500.0,0.00016438,2]
[330693570,1719712243060,-500.0,0.00016438,2]
[330693571,1719712243069,-1501.19,0.00016438,2]
[330693572,1719712243078,-19041.74,0.00016438,2]
[330693573,1719712243087,-500.0,0.00016438,2]
[330693574,1719712243096,-500.0,0.00016438,2]
[330693575,1719712243104,-713.92,0.00016438,2]
[330693576,1719712243114,-500.0,0.00016438,2]
[330693577,1719712243123,-884.41,0.00016438,2]
[330693578,1719712243133,-526.18308385,0.00016438,2]
[330693579,1719712243142,-572.33,0.00016438,2]
[330693580,1719712243150,-550.43610066,0.00016438,2]
[330693581,1719712243159,-500.0,0.00016438,2]
[330693582,1719712243168,-500.0,0.00016438,2]
[330693583,1719712243177,-1994.3,0.00016438,2]
[330693584,1719712243186,-1187.02,0.00016438,2]
[330693585,1719712243194,-731.57,0.00016438,2]
[330693586,1719712243203,-500.0,0.00016438,2]
[330693587,1719712243212,-574.11,0.00016438,2]
[330693588,1719712243220,-500.0,0.00016438,2]
[330693589,1719712243230,-500.0,0.00016438,2]
[330693590,1719712243240,-599.34,0.00016438,2]
[330693591,1719712243249,-500.0,0.00016438,2]
[330693592,1719712243258,-2593.85,0.00016438,2]
[330693593,1719712243266,-642.72365021,0.00016438,2]
[330693594,1719712243353,-500.0,0.00016438,2]
[330693596,1719712243363,-500.0,0.00016438,2]
[330693598,1719712243372,-500.0,0.00016438,2]
[330693600,1719712243382,-500.0,0.00016438,2]
[330693602,1719712243391,-500.0,0.00016438,2]
[330693603,1719712243400,-1799.29,0.00016438,2]
[330693604,1719712243409,-5276.19,0.00016438,2]
[330693605,1719712243419,-505.68935386,0.00016438,2]
[330693606,1719712243428,-259.7614997,0.00016438,2]
[330693607,1719712243437,-500.0,0.00016438,2]
[330693608,1719712243446,-567.8,0.00016438,2]
[330693609,1719712243455,-2430.4,0.00016438,2]
[330693610,1719712243466,-3774.03,0.00016438,2]
[330693611,1719712243476,-9541.8,0.00016438,2]
[330693612,1719712243485,-500.0,0.00016438,2]
[330693613,1719712243495,-1938.97,0.00016438,2]
[330693615,1719712243504,-500.0,0.00016438,2]
[330693617,1719712243513,-500.0,0.00016438,2]
[330693619,1719712243523,-500.0,0.00016438,2]
[330693621,1719712243532,-500.0,0.00016438,2]
[330693623,1719712243540,-500.0,0.00016438,2]
[330693625,1719712243550,-386.41996934,0.00016438,2]
[330693771,1719712938555,7939.07504826,0.00014998,2]
[330693772,1719712974661,19363.64113502,0.00014998,2]
[330693773,1719712998953,154.93295762,0.00014998,2]
[330693775,1719713059613,19363.64113502,0.00014998,2]
[330693776,1719713102321,1496.68343605,0.00014999,2]
[330693777,1719713102572,356.14032617,0.00014999,2]
[330693778,1719713125045,10000.0,0.000225,30]
[330693779,1719713143266,10000.0,0.000225,30]
[330693780,1719713151427,728.78409513,0.00014999,2]
[330693783,1719713164090,159.89529767,0.00014999,2]
[330693784,1719713242534,527.63361591,0.00014999,2]
[330693819,1719713433035,-1112.00985662,0.00016189,2]
[330693871,1719713438490,-4174.33494282,0.00016189,2]
[330693873,1719713438500,-10650.67375846,0.00016436,2]
[330693875,1719713438511,-500.0,0.00016438,2]
[330693877,1719713438521,-501.12905021,0.00016438,2]
[330693880,1719713438531,-1941.42,0.00016438,2]
[330693881,1719713438540,-1314.53,0.00016438,2]
[330693883,1719713438550,-500.0,0.00016438,2]
[330693885,1719713438560,-508.39491225,0.00016438,2]
[330693888,1719713438570,-501.16079115,0.00016438,2]
[330693890,1719713438579,-500.0,0.00016438,2]
[330693891,1719713438589,-500.0,0.00016438,2]
[330693893,1719713438599,-754.77,0.00016438,2]
[330693895,1719713438608,-501.6840721,0.00016438,2]
[330693897,1719713438618,-501.77301467,0.00016438,2]
[330693899,1719713438628,-504.43843048,0.00016438,2]
[330693901,1719713438639,-505.58111828,0.00016438,2]
[330693903,1719713438650,-500.0,0.00016438,2]
[330693905,1719713438660,-502.86841912,0.00016438,2]
[330693907,1719713438671,-15232.92,0.00016438,2]
[330693909,1719713438680,-500.0,0.00016438,2]
[330693910,1719713438691,-538.00787098,0.00016438,2]
[330693911,1719713438701,-584.87,0.00016438,2]
[330693912,1719713438711,-503.80395665,0.00016438,2]
[330693913,1719713438720,-502.94664777,0.00016438,2]
[330693915,1719713438730,-501.08655905,0.00016438,2]
[330693916,1719713438740,-500.0,0.00016438,2]
[330693917,1719713438749,-1171.29,0.00016438,2]
[330693918,1719713438758,-501.97196758,0.00016438,2]
[330693919,1719713438768,-778.32,0.00016438,2]
[330693920,1719713438778,-502.72826924,0.00016438,2]
[330693922,1719713438787,-1021.79,0.00016438,2]
[330693924,1719713438797,-2509.51,0.00016438,2]
[330693926,1719713438807,-523.21322067,0.00016438,2]
[330693928,1719713438817,-500.0,0.00016438,2]
[330693930,1719713438826,-500.0,0.00016438,2]
[330693932,1719713438836,-600.4,0.00016438,2]
[330693934,1719713438846,-500.0,0.00016438,2]
[330693936,1719713438855,-500.0,0.00016438,2]
[330693938,1719713438864,-580.06,0.00016438,2]
[330693940,1719713438874,-500.0,0.00016438,2]
[330693942,1719713438883,-506.82,0.00016438,2]
[330693944,1719713438893,-508.89228459,0.00016438,2]
[330693946,1719713438902,-500.0,0.00016438,2]
[330693948,1719713438912,-500.0,0.00016438,2]
[330693950,1719713438922,-568.65,0.00016438,2]
[330693952,1719713438931,-500.0,0.00016438,2]
[330693954,1719713438940,-500.0,0.00016438,2]
[330693956,1719713438952,-500.0,0.00016438,2]
[330693958,1719713438961,-500.0,0.00016438,2]
[330693960,1719713438971,-500.0,0.00016438,2]
[330693962,1719713438980,-909.73,0.00016438,2]
[330693964,1719713438990,-501.67703648,0.00016438,2]
[330693966,1719713438999,-525.72491005,0.00016438,2]
[330693968,1719713439011,-500.0,0.00016438,2]
[330693970,1719713439021,-500.0,0.00016438,2]
[330693972,1719713439031,-500.0,0.00016438,2]
[330693974,1719713439041,-500.0,0.00016438,2]
[330693976,1719713439051,-1656.37,0.00016438,2]
[330693978,1719713439062,-1378.42,0.00016438,2]
[330693980,1719713439072,-662.69,0.00016438,2]
[330693982,1719713439082,-500.0,0.00016438,2]
[330693984,1719713439092,-12451.97,0.00016438,2]
[330693986,1719713439103,-500.0,0.00016438,2]
[330693988,1719713439114,-500.0,0.00016438,2]
[330693990,1719713439124,-500.0,0.00016438,2]
[330693992,1719713439134,-500.0,0.00016438,2]
[330693994,1719713439144,-500.0,0.00016438,2]
[330693996,1719713439154,-3739.82,0.00016438,2]
[330693998,1719713439165,-500.0,0.00016438,2]
[330694000,1719713439175,-500.0,0.00016438,2]
[330694002,1719713439186,-500.0,0.00016438,2]
[330694004,1719713439196,-500.0,0.00016438,2]
[330694006,1719713439207,-873.14,0.00016438,2]
[330694008,1719713439217,-500.0,0.00016438,2]
[330694010,1719713439230,-540.56,0.00016438,2]
[330694012,1719713439240,-500.0,0.00016438,2]
[330694015,1719713439252,-303.37565027,0.00016438,2]
[330694017,1719713439267,-387.67568367,0.00016438,2]
[330694018,1719713439277,-982.52,0.00016438,2]
[330694020,1719713439288,-521.84,0.00016438,2]
[330694023,1719713439298,-1830.24,0.00016438,2]
[330694024,1719713439311,-500.0,0.00016438,2]
[330694037,1719713439426,-565.48491466,0.00016438,2]
[330694039,1719713439437,-543.63,0.00016438,2]
[330694041,1719713439447,-500.0,0.00016438,2]
[330694043,1719713439457,-1298.8,0.00016438,2]
[330694045,1719713439467,-500.0,0.00016438,2]
[330694047,1719713439477,-500.0,0.00016438,2]
[330694049,1719713439487,-510.37990973,0.00016438,2]
[330694051,1719713439496,-500.0,0.00016438,2]
[330694053,1719713439506,-500.0,0.00016438,2]
[330694055,1719713439516,-500.0,0.00016438,2]
[330694057,1719713439526,-500.0,0.00016438,2]
[330694059,1719713439536,-500.0,0.00016438,2]
[330694061,1719713439546,-568.43,0.00016438,2]
[330694063,1719713439556,-500.0,0.00016438,2]
[330694065,1719713439566,-500.0,0.00016438,2]
[330694066,1719713439576,-500.0,0.00016438,2]
[330694068,1719713439586,-500.0,0.00016438,2]
[330694071,1719713439596,-500.0,0.00016438,2]
[330694073,1719713439607,-500.0,0.00016438,2]
[330694075,1719713439617,-500.0,0.00016438,2]
[330694077,1719713439627,-500.0,0.00016438,2]
[330694079,1719713439637,-500.0,0.00016438,2]
[330694081,1719713439647,-500.0,0.00016438,2]
[330694083,1719713439656,-500.0,0.00016438,2]
[330694085,1719713439666,-157.74769732,0.00016438,2]
[330694087,1719713439675,-500.0,0.00016438,2]
[330694089,1719713439686,-500.0,0.00016438,2]
[330694091,1719713439696,-500.0,0.00016438,2]
[330694093,1719713439706,-500.0,0.00016438,2]
[330694095,1719713439715,-500.0,0.00016438,2]
[330694097,1719713439726,-508.94061713,0.00016438,2]
[330694099,1719713439738,-505.0003678,0.00016438,2]
[330694101,1719713439748,-1225.54,0.00016438,2]
[330694103,1719713439759,-504.87921183,0.00016438,2]
[330694105,1719713439769,-500.0,0.00016438,2]
[330694107,1719713439779,-766.92,0.00016438,2]
[330694109,1719713439788,-500.0,0.00016438,2]
[330694111,1719713439799,-500.0,0.00016438,2]
[330694113,1719713439809,-1067.5,0.00016438,2]
[330694115,1719713439819,-290.16226717,0.00016438,2]
[330694117,1719713439829,-500.0,0.00016438,2]
[330694119,1719713439839,-506.15870229,0.00016438,2]
[330694121,1719713439849,-535.70501768,0.00016438,2]
[330694123,1719713439859,-500.0,0.00016438,2]
[330694125,1719713439868,-500.0,0.00016438,2]
[330694127,1719713439878,-500.0,0.00016438,2]
[330694129,1719713439888,-546.69,0.00016438,2]
[330694131,1719713439897,-501.61298699,0.00016438,2]
[330694133,1719713439907,-2152.91,0.00016438,2]
[330694135,1719713439916,-501.29030991,0.00016438,2]
[330694137,1719713439926,-500.0,0.00016438,2]
[330694139,1719713439936,-500.0,0.00016438,2]
[330694141,1719713439946,-1437.5,0.00016438,2]
[330694143,1719713439956,-509.34,0.00016438,2]
[330694145,1719713439966,-503.84856482,0.00016438,2]
[330694147,1719713439975,-1381.85,0.00016438,2]
[330694149,1719713439985,-1500.42,0.00016438,2]
[330694151,1719713439995,-517.62036419,0.00016438,2]
[330694153,1719713440005,-505.11533947,0.00016438,2]
[330694155,1719713440015,-500.0,0.00016438,2]
[330694157,1719713440024,-666.13,0.00016438,2]
[330694159,1719713440034,-500.0,0.00016438,2]
[330694160,1719713440043,-508.45257702,0.00016438,2]
[330694162,1719713440053,-500.0,0.00016438,2]
[330694164,1719713440062,-609.03,0.00016438,2]
[330694166,1719713440072,-660.09,0.00016438,2]
[330694169,1719713440082,-500.0,0.00016438,2]
[330694172,1719713440092,-500.0,0.00016438,2]
[330694174,1719713440102,-2534.83,0.00016438,2]
[330694176,1719713440112,-505.05303332,0.00016438,2]
[330694178,1719713440121,-502.35257362,0.00016438,2]
[330694180,1719713440132,-524.30153872,0.00016438,2]
[330694182,1719713440142,-500.0,0.00016438,2]
[330694184,1719713440153,-2593.14,0.00016438,2]
[330694186,1719713440162,-500.0,0.00016438,2]
[330694188,1719713440172,-500.0,0.00016438,2]
[330694190,1719713440183,-638.08,0.00016438,2]
[330694192,1719713440193,-500.0,0.00016438,2]
[330694194,1719713440203,-1166.12,0.00016438,2]
[330694196,1719713440212,-320.90698252,0.00016438,2]
[330694198,1719713440223,-1522.99,0.00016438,2]
[330694200,1719713440232,-431.99558573,0.00016438,2]
[330694202,1719713440242,-500.0,0.00016438,2]
[330694204,1719713440252,-500.0,0.00016438,2]
[330694206,1719713440267,-753.97,0.00016438,2]
[330694208,1719713440276,-502.76565142,0.00016438,2]
[330694210,1719713440286,-500.0,0.00016438,2]
[330694212,1719713440296,-500.0,0.00016438,2]
[330694214,1719713440308,-930.38,0.00016438,2]
[330694216,1719713440318,-676.56,0.00016438,2]
[330694218,1719713440328,-500.0,0.00016438,2]
[330694220,1719713440339,-502.51886027,0.00016438,2]
[330694222,1719713440348,-500.0,0.00016438,2]
[330694224,1719713440358,-500.0,0.00016438,2]
[330694226,1719713440367,-500.0,0.00016438,2]
[330694228,1719713440376,-503.25470798,0.00016438,2]
[330694230,1719713440386,-503.66349811,0.00016438,2]
[330694232,1719713440395,-500.0,0.00016438,2]
[330694234,1719713440404,-500.0,0.00016438,2]
[330694236,1719713440414,-501.71861451,0.00016438,2]
[330694238,1719713440424,-500.15,0.00016438,2]
[330694240,1719713440436,-501.70799239,0.00016438,2]
[330694242,1719713440445,-835.69,0.00016438,2]
[330694244,1719713440455,-500.0,0.00016438,2]
[330694246,1719713440464,-503.72213045,0.00016438,2]
[330694248,1719713440474,-502.25486013,0.00016438,2]
[330694250,1719713440484,-503.05908995,0.00016438,2]
[330694252,1719713440493,-3051.39,0.00016438,2]
[330694254,1719713440502,-500.0,0.00016438,2]
[330694256,1719713440511,-500.0,0.00016438,2]
[330694258,1719713440521,-610.51,0.00016438,2]
[330694260,1719713440531,-500.0,0.00016438,2]
[330694262,1719713440540,-503.13922847,0.00016438,2]
[330694264,1719713440549,-504.9348097,0.00016438,2]
[330694266,1719713440559,-918.59,0.00016438,2]
[330694268,1719713440568,-886.85,0.00016438,2]
[330694270,1719713440580,-635.80447038,0.00016438,2]
[330694272,1719713440590,-500.0,0.00016438,2]
[330694274,1719713440601,-963.57,0.00016438,2]
[330694276,1719713440611,-500.0,0.00016438,2]
[330694278,1719713440621,-500.0,0.00016438,2]
[330694280,1719713440631,-500.0,0.00016438,2]
[330694282,1719713440640,-500.0,0.00016438,2]
[330694284,1719713440650,-500.0,0.00016438,2]
[330694286,1719713440659,-500.0,0.00016438,2]
[330694287,1719713440669,-501.20225164,0.00016438,2]
[330694289,1719713440678,-500.0,0.00016438,2]
[330694292,1719713440688,-2730.97,0.00016438,2]
[330694294,1719713440697,-742.58,0.00016438,2]
[330694296,1719713440707,-502.53388682,0.00016438,2]
[330694298,1719713440716,-813.01,0.00016438,2]
[330694300,1719713440725,-500.0,0.00016438,2]
[330694302,1719713440737,-283.41994305,0.00016438,2]
[330694304,1719713440746,-500.0,0.00016438,2]
[330694306,1719713440756,-595.02,0.00016438,2]
[330694308,1719713440765,-500.0,0.00016438,2]
[330694310,1719713440774,-500.0,0.00016438,2]
[330694312,1719713440783,-500.0,0.00016438,2]
[330694314,1719713440793,-500.0,0.00016438,2]
[330694316,1719713440802,-584.3,0.00016438,2]
[330694318,1719713440812,-500.0,0.00016438,2]
[330694320,1719713440821,-500.0,0.00016438,2]
[330694322,1719713440831,-633.49,0.00016438,2]
[330694324,1719713440840,-500.0,0.00016438,2]
[330694326,1719713440850,-500.0,0.00016438,2]
[330694328,1719713440859,-2964.06,0.00016438,2]
[330694330,1719713440868,-410.26335676,0.00016438,2]
[330694339,1719713440958,-504.32857135,0.00016438,2]
[330694341,1719713440968,-754.69,0.00016438,2]
[330694343,1719713440977,-500.0,0.00016438,2]
[330694345,1719713440987,-500.0,0.00016438,2]
[330694346,1719713440996,-500.0,0.00016438,2]
[330694348,1719713441005,-500.0,0.00016438,2]
[330694350,1719713441015,-500.0,0.00016438,2]
[330694352,1719713441024,-500.0,0.00016438,2]
[330694354,1719713441033,-500.0,0.00016438,2]
[330694356,1719713441043,-500.0,0.00016438,2]
[330694358,1719713441052,-500.0,0.00016438,2]
[330694360,1719713441061,-500.0,0.00016438,2]
[330694362,1719713441071,-500.0,0.00016438,2]
[330694364,1719713441081,-521.01903347,0.00016438,2]
[330694366,1719713441090,-500.0,0.00016438,2]
[330694368,1719713441100,-3569.34,0.00016438,2]
[330694370,1719713441109,-500.0,0.00016438,2]
[330694372,1719713441119,-695.52,0.00016438,2]
[330694374,1719713441128,-502.32933308,0.00016438,2]
[330694376,1719713441139,-645.19,0.00016438,2]
[330694378,1719713441148,-234.00245064,0.00016438,2]
[330694380,1719713441157,-502.75853814,0.00016438,2]
[330694382,1719713441166,-502.3572383,0.00016438,2]
[330694383,1719713441175,-500.0,0.00016438,2]
[330694385,1719713441184,-507.0192636,0.00016438,2]
[330694387,1719713441194,-500.0,0.00016438,2]
[330694389,1719713441203,-500.0,0.00016438,2]
[330694391,1719713441212,-711.89,0.00016438,2]
[330694393,1719713441221,-703.9,0.00016438,2]
[330694395,1719713441231,-303.83008966,0.00016438,2]
[330694397,1719713441240,-500.0,0.00016438,2]
[330694399,1719713441250,-506.19227959,0.00016438,2]
[330694401,1719713441264,-502.68202853,0.00016438,2]
[330694403,1719713441274,-500.0,0.00016438,2]
[330694405,1719713441283,-1444.04,0.00016438,2]
[330694407,1719713441292,-500.0,0.00016438,2]
[330694409,1719713441303,-500.0,0.00016438,2]
[330694411,1719713441313,-500.0,0.00016438,2]
[330694413,1719713441322,-500.0,0.00016438,2]
[330694415,1719713441331,-504.49353657,0.00016438,2]
[330694417,1719713441343,-864.35,0.00016438,2]
[330694419,1719713441352,-627.36491239,0.00016438,2]
[330694421,1719713441362,-530.93,0.00016438,2]
[330694423,1719713441371,-500.0,0.00016438,2]
[330694425,1719713441380,-500.0,0.00016438,2]
[330694427,1719713441390,-623.71,0.00016438,2]
[330694429,1719713441399,-1261.74,0.00016438,2]
[330694431,1719713441408,-1444.8,0.00016438,2]
[330694433,1719713441418,-500.0,0.00016438,2]
[330694435,1719713441429,-500.0,0.00016438,2]
[330694437,1719713441439,-500.0,0.00016438,2]
[330694439,1719713441448,-501.7334312,0.00016438,2]
[330694441,1719713441457,-1199.94,0.00016438,2]
[330694443,1719713441467,-500.0,0.00016438,2]
[330694445,1719713441476,-501.5589156,0.00016438,2]
[330694447,1719713441487,-500.0,0.00016438,2]
[330694449,1719713441497,-500.0,0.00016438,2]
[330694450,1719713441507,-500.0,0.00016438,2]
[330694452,1719713441518,-500.0,0.00016438,2]
[330694454,1719713441527,-188.09167626,0.00016438,2]
[330694456,1719713441537,-500.0,0.00016438,2]
[330694458,1719713441547,-502.47533666,0.00016438,2]
[330694460,1719713441556,-500.0,0.00016438,2]
[330694462,1719713441566,-501.32122998,0.00016438,2]
[330694464,1719713441575,-523.99123815,0.00016438,2]
[330694466,1719713441584,-596.87,0.00016438,2]
[330694468,1719713441594,-1277.19,0.00016438,2]
[330694470,1719713441604,-500.0,0.00016438,2]
[330694472,1719713441613,-500.0,0.00016438,2]
[330694473,1719713441621,-500.0,0.00016438,2]
[330694474,1719713441631,-579.06,0.00016438,2]
[330694475,1719713441641,-666.67,0.00016438,2]
[330694476,1719713441650,-567.8,0.00016438,2]
[330694477,1719713441659,-500.0,0.00016438,2]
[330694478,1719713441669,-530.81,0.00016438,2]
[330694479,1719713441678,-526.18308385,0.00016438,2]
[330694480,1719713441687,-550.43610066,0.00016438,2]
[330694481,1719713441696,-500.0,0.00016438,2]
[330694482,1719713441705,-500.0,0.00016438,2]
[330694483,1719713441714,-500.0,0.00016438,2]
[330694484,1719713441724,-500.0,0.00016438,2]
[330694485,1719713441733,-642.72365021,0.00016438,2]
[330694486,1719713441744,-500.0,0.00016438,2]
[330694487,1719713441753,-518.6968974,0.00016438,2]
[330694488,1719713441762,-3084.25,0.00016438,2]
[330694489,1719713441771,-500.0,0.00016438,2]
[330694490,1719713441781,-670.14,0.00016438,2]
[330694491,1719713441793,-3754.41,0.00016438,2]
[330694492,1719713441802,-500.0,0.00016438,2]
[330694493,1719713441811,-500.0,0.00016438,2]
[330694494,1719713441821,-259.7614997,0.00016438,2]
[330694495,1719713441830,-19041.74,0.00016438,2]
[330694496,1719713441839,-500.0,0.00016438,2]
[330694497,1719713441849,-1335.92,0.00016438,2]
[330694498,1719713441859,-500.0,0.00016438,2]
[330694499,1719713441868,-500.0,0.00016438,2]
[330694500,1719713441879,-500.0,0.00016438,2]
[330694501,1719713441888,-500.0,0.00016438,2]
[330694502,1719713441898,-500.0,0.00016438,2]
[330694503,1719713441907,-500.0,0.00016438,2]
[330694504,1719713441917,-500.0,0.00016438,2]
[330694505,1719713441927,-600.27,0.00016438,2]
[330694507,1719713441936,-501.72680499,0.00016438,2]
[330694509,1719713441946,-787.38,0.00016438,2]
[330694511,1719713441955,-500.0,0.00016438,2]
[330694512,1719713441966,-500.0,0.00016438,2]
[330694514,1719713441976,-275.56456711,0.00016438,2]
[330694516,1719713441985,-501.5096367,0.00016438,2]
[330694518,1719713441995,-500.0,0.00016438,2]
[330694520,1719713442004,-756.78,0.00016438,2]
[330694522,1719713442014,-505.39705489,0.00016438,2]
[330694524,1719713442023,-843.42,0.00016438,2]
[330694526,1719713442033,-500.0,0.00016438,2]
[330694529,1719713442042,-500.0,0.00016438,2]
[330694530,1719713442053,-497.24081601,0.00016438,2]
[330694532,1719713442063,-548.5553125,0.00016438,2]
[330694534,1719713442072,-628.96,0.00016438,2]
[330694536,1719713442081,-1075.04,0.00016438,2]
[330694538,1719713442091,-509.45315943,0.00016438,2]
[330694540,1719713442100,-962.72,0.00016438,2]
[330694542,1719713442110,-500.0,0.00016438,2]
[330694544,1719713442120,-1021.3,0.00016438,2]
[330694547,1719713442129,-501.00203503,0.00016438,2]
[330694548,1719713442139,-500.0,0.00016438,2]
[330694550,1719713442148,-900.33,0.00016438,2]
[330694552,1719713442158,-500.0,0.00016438,2]
[330694554,1719713442167,-500.0,0.00016438,2]
[330694556,1719713442176,-808.99,0.00016438,2]